fUST/lending_fUST_20250525
["ID","MTS","AMOUNT","RATE_DAILY","PERIOD"]
[362234414,1748115038788,-1416.95,0.00022465,2]
[362234416,1748115038797,-430.0,0.00022465,2]
[362234418,1748115038806,-935.23,0.00022465,2]
[362234420,1748115038815,-430.0,0.00022465,2]
[362234422,1748115038824,-430.0,0.00022465,2]
[362234424,1748115038834,-377.29336116,0.00022465,2]
[362234426,1748115038844,-2764.11,0.00022465,2]
[362234428,1748115038853,-817.41,0.00022465,2]
[362234430,1748115038862,-543.4,0.00022465,2]
[362234432,1748115038871,-550.0,0.00022465,2]
[362234434,1748115038880,-430.0,0.00022465,2]
[362234436,1748115038889,-430.0,0.00022465,2]
[362234438,1748115038898,-470.0,0.00022465,2]
[362234440,1748115038907,-430.0,0.00022465,2]
[362234442,1748115038917,-929.81,0.00022465,2]
[362234444,1748115038926,-595.95659499,0.00022509,2]
[362234446,1748115038936,-500.0,0.00022509,2]
[362234448,1748115038945,-1026.68191056,0.00022563,2]
[362234450,1748115038954,-500.0,0.00022574,2]
[362234452,1748115038963,-207.4,0.00022672,2]
[362234454,1748115038973,-430.0,0.00022739,2]
[362234456,1748115038983,-430.0,0.00022739,2]
[362234458,1748115038993,-430.0,0.00022739,2]
[362234460,1748115039003,-382.69,0.00022739,2]
[362234462,1748115039012,-729.91,0.00022739,2]
[362234464,1748115039021,-646.54,0.00022739,2]
[362234466,1748115039030,-456.91,0.00022739,2]
[362234468,1748115039040,-470.0,0.00022739,2]
[362234470,1748115039050,-430.0,0.00022739,2]
[362234472,1748115039059,-430.0,0.00022739,2]
[362234474,1748115039068,-430.0,0.00022739,2]
[362234476,1748115039077,-434.24,0.00022739,2]
[362234478,1748115039087,-430.0,0.00022739,2]
[362234480,1748115039095,-430.0,0.00022739,2]
[362234481,1748115039105,-430.0,0.00022739,2]
[362234482,1748115039115,-500.0,0.00022739,2]
[362234483,1748115039124,-430.0,0.00022739,2]
[362234484,1748115039133,-430.0,0.00022739,2]
[362234485,1748115039143,-430.0,0.00022739,2]
[362234486,1748115039152,-430.0,0.00022739,2]
[362234487,1748115039161,-430.0,0.00022739,2]
[362234488,1748115039171,-430.0,0.00022739,2]
[362234489,1748115039180,-430.0,0.00022739,2]
[362234490,1748115039190,-4117.41,0.00022739,2]
[362234491,1748115039199,-503.54,0.00022739,2]
[362234492,1748115039208,-430.0,0.00022739,2]
[362234493,1748115039218,-488.54,0.00022739,2]
[362234494,1748115039226,-430.0,0.00022739,2]
[362234495,1748115039236,-452.61,0.00022739,2]
[362234496,1748115039245,-244.58,0.00022739,2]
[362234497,1748115039254,-570.41,0.00022739,2]
[362234498,1748115039263,-430.0,0.00022739,2]
[362234499,1748115039272,-1216.53,0.00022739,2]
[362234500,1748115039281,-583.23,0.00022739,2]
[362234501,1748115039290,-430.0,0.00022739,2]
[362234502,1748115039300,-430.0,0.00022739,2]
[362234503,1748115039309,-2438.08,0.00022739,2]
[362234504,1748115039319,-430.0,0.00022739,2]
[362234505,1748115039328,-430.0,0.00022739,2]
[362234506,1748115039337,-430.0,0.00022739,2]
[362234507,1748115039346,-430.0,0.00022739,2]
[362234508,1748115039355,-788.71,0.00022739,2]
[362234509,1748115039364,-430.0,0.00022739,2]
[362234510,1748115039374,-430.0,0.00022739,2]
[362234511,1748115039383,-430.0,0.00022739,2]
[362234513,1748115039393,-697.59,0.00022739,2]
[362234514,1748115039402,-430.0,0.00022739,2]
[362234515,1748115039412,-564.06,0.00022739,2]
[362234516,1748115039421,-430.0,0.00022739,2]
[362234517,1748115039430,-579.99,0.00022739,2]
[362234518,1748115039439,-977.39,0.00022739,2]
[362234519,1748115039448,-430.0,0.00022739,2]
[362234520,1748115039458,-430.0,0.00022739,2]
[362234522,1748115039467,-430.0,0.00022739,2]
[362234524,1748115039476,-430.0,0.00022739,2]
[362234526,1748115039486,-600.08,0.00022739,2]
[362234528,1748115039495,-966.19,0.00022739,2]
[362234530,1748115039504,-430.0,0.00022739,2]
[362234532,1748115039513,-430.0,0.00022739,2]
[362234534,1748115039523,-430.0,0.00022739,2]
[362234536,1748115039532,-1200.56,0.00022739,2]
[362234538,1748115039542,-1462.07,0.00022739,2]
[362234540,1748115039551,-528.96,0.00022739,2]
[362234542,1748115039560,-1416.95,0.00022739,2]
[362234543,1748115039570,-430.0,0.00022739,2]
[362234545,1748115039580,-935.23,0.00022739,2]
[362234547,1748115039590,-430.0,0.00022739,2]
[362234549,1748115039600,-430.0,0.00022739,2]
[362234550,1748115039611,-2764.11,0.00022739,2]
[362234551,1748115039621,-817.41,0.00022739,2]
[362234553,1748115039632,-543.4,0.00022739,2]
[362234555,1748115039641,-126.5805883,0.00022739,2]
[362234641,1748115040614,-252.16177373,0.00021916,2]
[362234644,1748115040626,-247.83822627,0.00021916,2]
[362234646,1748115040636,-258.61422216,0.00021916,2]
[362234648,1748115040647,-241.38577784,0.00021916,2]
[362234650,1748115040657,-500.0,0.00021916,2]
[362234652,1748115040669,-500.0,0.00021916,2]
[362234654,1748115040678,-500.0,0.00021916,2]
[362234656,1748115040687,-426.53014482,0.00021916,2]
[362234658,1748115040697,-500.0,0.00021916,2]
[362234660,1748115040706,-500.0,0.00021916,2]
[362234662,1748115040717,-500.0,0.00021916,2]
[362234664,1748115040726,-500.0,0.00021916,2]
[362234666,1748115040735,-205.56235887,0.00021916,2]
[362234668,1748115040745,-500.0,0.00021916,2]
[362234670,1748115040754,-500.0,0.00021916,2]
[362234672,1748115040763,-500.0,0.00021916,2]
[362234674,1748115040772,-500.0,0.00021916,2]
[362234676,1748115040781,-278.64182172,0.00021916,2]
[362234678,1748115040791,-500.0,0.00021916,2]
[362234680,1748115040799,-500.0,0.00021916,2]
[362234682,1748115040809,-334.88574428,0.00021917,2]
[362234684,1748115040818,-430.0,0.00021917,2]
[362234686,1748115040828,-430.0,0.00021917,2]
[362234688,1748115040837,-430.0,0.00021917,2]
[362234690,1748115040846,-470.0,0.00021917,2]
[362234692,1748115040856,-430.0,0.00021917,2]
[362234694,1748115040866,-470.0,0.00021917,2]
[362234696,1748115040875,-430.0,0.00022191,2]
[362234698,1748115040884,-430.0,0.00022191,2]
[362234700,1748115040893,-470.0,0.00022191,2]
[362234702,1748115040903,-430.0,0.00022191,2]
[362234704,1748115040912,-547.69,0.00022465,2]
[362234706,1748115040922,-303.4194117,0.00022739,2]
[362234708,1748115040932,-430.0,0.00022739,2]
[362234710,1748115040941,-430.0,0.00022739,2]
[362234712,1748115040951,-929.81,0.00022739,2]
[362234713,1748115040961,-277.762164,0.00022893,2]
[362234715,1748115040970,-12601.31685179,0.00023,2]
[362234737,1748115041171,-430.0,0.00021917,2]
[362234739,1748115041182,-450.0,0.00021917,2]
[362234741,1748115041192,-470.0,0.00022191,2]
[362234743,1748115041202,-2450.98326218,0.00023,2]
[362234910,1748115043144,-160.01913303,0.00019288,2]
[362234912,1748115043154,-199.45939848,0.00019288,2]
[362234914,1748115043164,-430.0,0.00021917,2]
[362234916,1748115043174,-430.0,0.00021917,2]
[362234918,1748115043184,-389.94885917,0.00021917,2]
[362234920,1748115043196,-40.05114083,0.00021917,2]
[362234922,1748115043207,-430.0,0.00021917,2]
[362234924,1748115043217,-430.0,0.00021917,2]
[362234926,1748115043227,-364.70853843,0.00022191,2]
[362234928,1748115043239,-65.29146157,0.00022191,2]
[362234930,1748115043249,-430.0,0.00022191,2]
[362234932,1748115043258,-430.0,0.00022191,2]
[362234934,1748115043268,-430.0,0.00022191,2]
[362234936,1748115043278,-430.0,0.00022465,2]
[362234939,1748115043287,-53620.04711733,0.00023,2]
[362234942,1748115043299,-15466.88554225,0.00023,2]
[362234959,1748115043404,-700.24252333,0.00023,2]
[362234961,1748115043414,-3018.02835564,0.00023,2]
[362234963,1748115043425,-430.0,0.00023013,2]
[362234965,1748115043434,-430.0,0.00023013,2]
[362234966,1748115043444,-430.0,0.00023013,2]
[362234967,1748115043453,-183.84553562,0.00023013,2]
[362234968,1748115043464,-430.0,0.00023013,2]
[362234969,1748115043473,-194.66728507,0.00023013,2]
[362234970,1748115043482,-434.24,0.00023013,2]
[362234971,1748115043492,-430.0,0.00023013,2]
[362234972,1748115043502,-430.0,0.00023013,2]
[362234973,1748115043511,-430.0,0.00023013,2]
[362234974,1748115043520,-500.0,0.00023013,2]
[362234975,1748115043529,-430.0,0.00023013,2]
[362234976,1748115043538,-430.0,0.00023013,2]
[362234977,1748115043547,-430.0,0.00023013,2]
[362234978,1748115043556,-430.0,0.00023013,2]
[362234979,1748115043566,-430.0,0.00023013,2]
[362234980,1748115043575,-430.0,0.00023013,2]
[362234981,1748115043584,-503.54,0.00023013,2]
[362234982,1748115043593,-430.0,0.00023013,2]
[362234983,1748115043602,-452.61,0.00023013,2]
[362234984,1748115043611,-244.58,0.00023013,2]
[362234985,1748115043621,-570.41,0.00023013,2]
[362234986,1748115043630,-430.0,0.00023013,2]
[362234987,1748115043639,-1216.53,0.00023013,2]
[362234988,1748115043647,-583.23,0.00023013,2]
[362234989,1748115043657,-430.0,0.00023013,2]
[362234990,1748115043670,-430.0,0.00023013,2]
[362234991,1748115043678,-2438.08,0.00023013,2]
[362234992,1748115043687,-237.08,0.00023013,2]
[362234993,1748115043697,-430.0,0.00023013,2]
[362234994,1748115043707,-483.93,0.00023013,2]
[362234995,1748115043717,-430.0,0.00023013,2]
[362234997,1748115043727,-788.71,0.00023013,2]
[362234999,1748115043737,-430.0,0.00023013,2]
[362235001,1748115043747,-430.0,0.00023013,2]
[362235003,1748115043759,-430.0,0.00023013,2]
[362235005,1748115043768,-697.59,0.00023013,2]
[362235007,1748115043779,-430.0,0.00023013,2]
[362235009,1748115043789,-564.06,0.00023013,2]
[362235011,1748115043799,-430.0,0.00023013,2]
[362235013,1748115043808,-579.99,0.00023013,2]
[362235015,1748115043818,-977.39,0.00023013,2]
[362235017,1748115043828,-430.0,0.00023013,2]
[362235019,1748115043838,-430.0,0.00023013,2]
[362235021,1748115043848,-430.0,0.00023013,2]
[362235023,1748115043857,-430.0,0.00023013,2]
[362235025,1748115043866,-600.08,0.00023013,2]
[362235027,1748115043876,-966.19,0.00023013,2]
[362235029,1748115043885,-430.0,0.00023013,2]
[362235031,1748115043895,-430.0,0.00023013,2]
[362235033,1748115043905,-430.0,0.00023013,2]
[362235035,1748115043915,-1200.56,0.00023013,2]
[362235037,1748115043925,-1462.07,0.00023013,2]
[362235040,1748115043935,-528.96,0.00023013,2]
[362235042,1748115043945,-1416.95,0.00023013,2]
[362235044,1748115043954,-430.0,0.00023013,2]
[362235045,1748115043965,-935.23,0.00023013,2]
[362235047,1748115043974,-430.0,0.00023013,2]
[362235050,1748115043985,-430.0,0.00023013,2]
[362235051,1748115043994,-2764.11,0.00023013,2]
[362235053,1748115044004,-817.41,0.00023013,2]
[362235056,1748115044014,-543.4,0.00023013,2]
[362235057,1748115044023,-430.0,0.00023013,2]
[362235060,1748115044034,-437.01576669,0.00023013,2]
[362235061,1748115044044,-430.0,0.00023013,2]
[362235063,1748115044053,-929.81,0.00023013,2]
[362235065,1748115044062,-1000.0,0.00023122,2]
[362235067,1748115044073,-250.0,0.00023123,2]
[362235069,1748115044082,-900.0,0.0002316,2]
[362235071,1748115044092,-256.89,0.00023287,2]
[362235073,1748115044101,-430.0,0.00023287,2]
[362235076,1748115044112,-430.0,0.00023287,2]
[362235077,1748115044122,-160.55365552,0.00023287,2]
[362235079,1748115044131,-434.24,0.00023287,2]
[362235082,1748115044144,-430.0,0.00023287,2]
[362235084,1748115044154,-399.69257944,0.00023287,2]
[362235086,1748115044164,-430.0,0.00023287,2]
[362235088,1748115044173,-500.0,0.00023287,2]
[362235090,1748115044182,-430.0,0.00023287,2]
[362235092,1748115044193,-430.0,0.00023287,2]
[362235094,1748115044202,-430.0,0.00023287,2]
[362235096,1748115044212,-430.0,0.00023287,2]
[362235098,1748115044226,-430.0,0.00023287,2]
[362235100,1748115044236,-430.0,0.00023287,2]
[362235102,1748115044245,-503.54,0.00023287,2]
[362235104,1748115044254,-430.0,0.00023287,2]
[362235106,1748115044265,-452.61,0.00023287,2]
[362235108,1748115044275,-244.58,0.00023287,2]
[362235110,1748115044285,-570.41,0.00023287,2]
[362235112,1748115044294,-430.0,0.00023287,2]
[362235114,1748115044303,-1216.53,0.00023287,2]
[362235116,1748115044312,-583.23,0.00023287,2]
[362235118,1748115044322,-430.0,0.00023287,2]
[362235120,1748115044331,-430.0,0.00023287,2]
[362235122,1748115044341,-2438.08,0.00023287,2]
[362235123,1748115044351,-430.0,0.00023287,2]
[362235125,1748115044360,-430.0,0.00023287,2]
[362235127,1748115044369,-788.71,0.00023287,2]
[362235129,1748115044379,-430.0,0.00023287,2]
[362235131,1748115044388,-430.0,0.00023287,2]
[362235133,1748115044398,-430.0,0.00023287,2]
[362235135,1748115044407,-697.59,0.00023287,2]
[362235137,1748115044418,-430.0,0.00023287,2]
[362235140,1748115044428,-564.06,0.00023287,2]
[362235141,1748115044438,-430.0,0.00023287,2]
[362235143,1748115044448,-579.99,0.00023287,2]
[362235145,1748115044457,-977.39,0.00023287,2]
[362235147,1748115044466,-430.0,0.00023287,2]
[362235149,1748115044476,-430.0,0.00023287,2]
[362235151,1748115044485,-430.0,0.00023287,2]
[362235153,1748115044495,-430.0,0.00023287,2]
[362235155,1748115044504,-600.08,0.00023287,2]
[362235157,1748115044515,-966.19,0.00023287,2]
[362235159,1748115044524,-430.0,0.00023287,2]
[362235161,1748115044534,-430.0,0.00023287,2]
[362235163,1748115044543,-430.0,0.00023287,2]
[362235165,1748115044552,-1200.56,0.00023287,2]
[362235167,1748115044562,-1462.07,0.00023287,2]
[362235169,1748115044571,-528.96,0.00023287,2]
[362235171,1748115044581,-1416.95,0.00023287,2]
[362235173,1748115044590,-430.0,0.00023287,2]
[362235175,1748115044600,-935.23,0.00023287,2]
[362235177,1748115044609,-430.0,0.00023287,2]
[362235179,1748115044618,-430.0,0.00023287,2]
[362235181,1748115044627,-2764.11,0.00023287,2]
[362235183,1748115044636,-817.41,0.00023287,2]
[362235185,1748115044645,-543.4,0.00023287,2]
[362235187,1748115044655,-430.0,0.00023287,2]
[362235189,1748115044666,-430.0,0.00023287,2]
[362235191,1748115044675,-929.81,0.00023287,2]
[362235193,1748115044684,-1026.68191056,0.00023309,2]
[362235195,1748115044694,-960.0,0.00023559,2]
[362235197,1748115044705,-430.0,0.00023561,2]
[362235200,1748115044715,-430.0,0.00023561,2]
[362235202,1748115044724,-434.24,0.00023561,2]
[362235204,1748115044734,-430.0,0.00023561,2]
[362235205,1748115044745,-430.0,0.00023561,2]
[362235207,1748115044755,-500.0,0.00023561,2]
[362235209,1748115044764,-430.0,0.00023561,2]
[362235211,1748115044774,-430.0,0.00023561,2]
[362235213,1748115044784,-430.0,0.00023561,2]
[362235215,1748115044793,-430.0,0.00023561,2]
[362235217,1748115044804,-430.0,0.00023561,2]
[362235219,1748115044815,-495.53284221,0.00023561,2]
[362235221,1748115044828,-503.54,0.00023561,2]
[362235223,1748115044842,-430.0,0.00023561,2]
[362235225,1748115044852,-452.61,0.00023561,2]
[362235228,1748115044863,-244.58,0.00023561,2]
[362235229,1748115044873,-570.41,0.00023561,2]
[362235231,1748115044882,-430.0,0.00023561,2]
[362235233,1748115044892,-1216.53,0.00023561,2]
[362235235,1748115044903,-583.23,0.00023561,2]
[362235237,1748115044912,-430.0,0.00023561,2]
[362235239,1748115044922,-430.0,0.00023561,2]
[362235241,1748115044931,-2438.08,0.00023561,2]
[362235243,1748115044941,-430.0,0.00023561,2]
[362235245,1748115044951,-430.0,0.00023561,2]
[362235247,1748115044960,-788.71,0.00023561,2]
[362235249,1748115044970,-430.0,0.00023561,2]
[362235251,1748115044979,-430.0,0.00023561,2]
[362235253,1748115044988,-232.40893355,0.00023561,2]
[362235255,1748115044997,-697.59,0.00023561,2]
[362235257,1748115045008,-430.0,0.00023561,2]
[362235259,1748115045018,-564.06,0.00023561,2]
[362235262,1748115045029,-430.0,0.00023561,2]
[362235264,1748115045038,-579.99,0.00023561,2]
[362235266,1748115045047,-977.39,0.00023561,2]
[362235268,1748115045057,-430.0,0.00023561,2]
[362235270,1748115045066,-430.0,0.00023561,2]
[362235272,1748115045076,-430.0,0.00023561,2]
[362235274,1748115045085,-430.0,0.00023561,2]
[362235276,1748115045095,-600.08,0.00023561,2]
[362235278,1748115045104,-966.19,0.00023561,2]
[362235280,1748115045113,-430.0,0.00023561,2]
[362235282,1748115045123,-430.0,0.00023561,2]
[362235283,1748115045132,-430.0,0.00023561,2]
[362235285,1748115045142,-1200.56,0.00023561,2]
[362235287,1748115045151,-1462.07,0.00023561,2]
[362235289,1748115045160,-528.96,0.00023561,2]
[362235291,1748115045170,-1416.95,0.00023561,2]
[362235293,1748115045179,-430.0,0.00023561,2]
[362235295,1748115045189,-935.23,0.00023561,2]
[362235297,1748115045199,-448.68769286,0.00023561,2]
[362235299,1748115045209,-460.04513543,0.00023561,2]
[362235301,1748115045219,-2764.11,0.00023561,2]
[362235303,1748115045228,-817.41,0.00023561,2]
[362235305,1748115045237,-543.4,0.00023561,2]
[362235307,1748115045247,-430.0,0.00023561,2]
[362235309,1748115045256,-430.0,0.00023561,2]
[362235311,1748115045266,-929.81,0.00023561,2]
[362235313,1748115045275,-1500.0,0.0002367,2]
[362235315,1748115045285,-430.0,0.00023835,2]
[362235317,1748115045295,-380.84,0.00023835,2]
[362235319,1748115045304,-434.24,0.00023835,2]
[362235321,1748115045313,-430.0,0.00023835,2]
[362235323,1748115045323,-430.0,0.00023835,2]
[362235325,1748115045333,-500.0,0.00023835,2]
[362235327,1748115045343,-430.0,0.00023835,2]
[362235329,1748115045352,-430.0,0.00023835,2]
[362235331,1748115045361,-430.0,0.00023835,2]
[362235333,1748115045371,-430.0,0.00023835,2]
[362235344,1748115045465,-430.0,0.00023835,2]
[362235347,1748115045476,-503.54,0.00023835,2]
[362235350,1748115045486,-430.0,0.00023835,2]
[362235352,1748115045495,-452.61,0.00023835,2]
[362235354,1748115045505,-244.58,0.00023835,2]
[362235356,1748115045514,-570.41,0.00023835,2]
[362235359,1748115045524,-430.0,0.00023835,2]
[362235361,1748115045533,-1216.53,0.00023835,2]
[362235363,1748115045543,-583.23,0.00023835,2]
[362235365,1748115045551,-430.0,0.00023835,2]
[362235367,1748115045560,-430.0,0.00023835,2]
[362235369,1748115045570,-2438.08,0.00023835,2]
[362235370,1748115045579,-430.0,0.00023835,2]
[362235373,1748115045588,-430.0,0.00023835,2]
[362235375,1748115045598,-788.71,0.00023835,2]
[362235377,1748115045607,-430.0,0.00023835,2]
[362235379,1748115045617,-430.0,0.00023835,2]
[362235381,1748115045627,-697.59,0.00023835,2]
[362235383,1748115045636,-430.0,0.00023835,2]
[362235385,1748115045646,-564.06,0.00023835,2]
[362235387,1748115045658,-430.0,0.00023835,2]
[362235389,1748115045673,-579.99,0.00023835,2]
[362235391,1748115045682,-977.39,0.00023835,2]
[362235394,1748115045692,-430.0,0.00023835,2]
[362235396,1748115045702,-430.0,0.00023835,2]
[362235397,1748115045713,-430.0,0.00023835,2]
[362235399,1748115045723,-430.0,0.00023835,2]
[362235402,1748115045733,-600.08,0.00023835,2]
[362235404,1748115045744,-966.19,0.00023835,2]
[362235406,1748115045755,-430.0,0.00023835,2]
[362235407,1748115045764,-430.0,0.00023835,2]
[362235409,1748115045773,-430.0,0.00023835,2]
[362235411,1748115045782,-1200.56,0.00023835,2]
[362235413,1748115045791,-1462.07,0.00023835,2]
[362235415,1748115045801,-528.96,0.00023835,2]
[362235417,1748115045811,-1416.95,0.00023835,2]
[362235419,1748115045820,-430.0,0.00023835,2]
[362235421,1748115045830,-935.23,0.00023835,2]
[362235423,1748115045839,-2764.11,0.00023835,2]
[362235425,1748115045848,-817.41,0.00023835,2]
[362235427,1748115045857,-543.4,0.00023835,2]
[362235429,1748115045867,-430.0,0.00023835,2]
[362235431,1748115045876,-430.0,0.00023835,2]
[362235433,1748115045886,-929.81,0.00023835,2]
[362235435,1748115045896,-1139.36599332,0.0002387,2]
[362235437,1748115045905,-1821.51840447,0.000239,2]
[362235439,1748115045915,-215.0738,0.00024041,2]
[362235441,1748115045924,-1026.68191056,0.00024054,2]
[362235443,1748115045934,-430.0,0.00024109,2]
[362235445,1748115045943,-434.24,0.00024109,2]
[362235447,1748115045953,-430.0,0.00024109,2]
[362235449,1748115045962,-430.0,0.00024109,2]
[362235451,1748115045972,-500.0,0.00024109,2]
[362235453,1748115045981,-430.0,0.00024109,2]
[362235455,1748115045991,-430.0,0.00024109,2]
[362235457,1748115046000,-430.0,0.00024109,2]
[362235459,1748115046010,-430.0,0.00024109,2]
[362235461,1748115046020,-430.0,0.00024109,2]
[362235463,1748115046030,-503.54,0.00024109,2]
[362235465,1748115046039,-430.0,0.00024109,2]
[362235467,1748115046049,-452.61,0.00024109,2]
[362235469,1748115046059,-244.58,0.00024109,2]
[362235471,1748115046069,-570.41,0.00024109,2]
[362235472,1748115046079,-430.0,0.00024109,2]
[362235473,1748115046089,-1216.53,0.00024109,2]
[362235474,1748115046099,-583.23,0.00024109,2]
[362235475,1748115046110,-430.0,0.00024109,2]
[362235476,1748115046120,-430.0,0.00024109,2]
[362235477,1748115046133,-2438.08,0.00024109,2]
[362235479,1748115046143,-430.0,0.00024109,2]
[362235481,1748115046152,-430.0,0.00024109,2]
[362235483,1748115046162,-788.71,0.00024109,2]
[362235485,1748115046172,-430.0,0.00024109,2]
[362235487,1748115046182,-430.0,0.00024109,2]
[362235489,1748115046192,-697.59,0.00024109,2]
[362235491,1748115046201,-430.0,0.00024109,2]
[362235493,1748115046211,-564.06,0.00024109,2]
[362235495,1748115046223,-430.0,0.00024109,2]
[362235497,1748115046233,-579.99,0.00024109,2]
[362235499,1748115046243,-977.39,0.00024109,2]
[362235501,1748115046253,-430.0,0.00024109,2]
[362235503,1748115046262,-430.0,0.00024109,2]
[362235505,1748115046272,-439.96,0.00024109,2]
[362235507,1748115046281,-430.0,0.00024109,2]
[362235510,1748115046291,-600.08,0.00024109,2]
[362235513,1748115046300,-966.19,0.00024109,2]
[362235515,1748115046309,-430.0,0.00024109,2]
[362235517,1748115046319,-430.0,0.00024109,2]
[362235519,1748115046328,-430.0,0.00024109,2]
[362235521,1748115046338,-1200.56,0.00024109,2]
[362235523,1748115046347,-1462.07,0.00024109,2]
[362235525,1748115046356,-528.96,0.00024109,2]
[362235527,1748115046365,-1416.95,0.00024109,2]
[362235529,1748115046374,-430.0,0.00024109,2]
[362235531,1748115046383,-935.23,0.00024109,2]
[362235533,1748115046392,-2764.11,0.00024109,2]
[362235535,1748115046402,-817.41,0.00024109,2]
[362235537,1748115046411,-543.4,0.00024109,2]
[362235539,1748115046420,-430.0,0.00024109,2]
[362235541,1748115046429,-430.0,0.00024109,2]
[362235543,1748115046438,-929.81,0.00024109,2]
[362235545,1748115046447,-2000.0,0.00024218,2]
[362235547,1748115046456,-900.0,0.00024256,2]
[362235549,1748115046465,-430.0,0.00024383,2]
[362235551,1748115046474,-434.24,0.00024383,2]
[362235553,1748115046483,-430.0,0.00024383,2]
[362235555,1748115046492,-430.0,0.00024383,2]
[362235557,1748115046501,-500.0,0.00024383,2]
[362235559,1748115046510,-566.0,0.00024383,2]
[362235561,1748115046519,-430.0,0.00024383,2]
[362235563,1748115046529,-430.0,0.00024383,2]
[362235565,1748115046538,-430.0,0.00024383,2]
[362235567,1748115046548,-430.0,0.00024383,2]
[362235569,1748115046557,-503.54,0.00024383,2]
[362235571,1748115046567,-430.0,0.00024383,2]
[362235573,1748115046576,-452.61,0.00024383,2]
[362235575,1748115046585,-244.58,0.00024383,2]
[362235577,1748115046594,-570.41,0.00024383,2]
[362235579,1748115046604,-430.0,0.00024383,2]
[362235581,1748115046613,-1216.53,0.00024383,2]
[362235583,1748115046623,-583.23,0.00024383,2]
[362235586,1748115046632,-430.0,0.00024383,2]
[362235588,1748115046642,-430.0,0.00024383,2]
[362235590,1748115046651,-2438.08,0.00024383,2]
[362235592,1748115046661,-430.0,0.00024383,2]
[362235594,1748115046674,-430.0,0.00024383,2]
[362235596,1748115046683,-788.71,0.00024383,2]
[362235598,1748115046693,-430.0,0.00024383,2]
[362235600,1748115046702,-430.0,0.00024383,2]
[362235602,1748115046714,-697.59,0.00024383,2]
[362235604,1748115046723,-430.0,0.00024383,2]
[362235606,1748115046732,-564.06,0.00024383,2]
[362235608,1748115046742,-430.0,0.00024383,2]
[362235610,1748115046752,-579.99,0.00024383,2]
[362235612,1748115046762,-977.39,0.00024383,2]
[362235614,1748115046771,-430.0,0.00024383,2]
[362235616,1748115046780,-430.0,0.00024383,2]
[362235618,1748115046790,-430.0,0.00024383,2]
[362235620,1748115046799,-600.08,0.00024383,2]
[362235622,1748115046809,-966.19,0.00024383,2]
[362235624,1748115046818,-430.0,0.00024383,2]
[362235626,1748115046827,-430.0,0.00024383,2]
[362235628,1748115046836,-430.0,0.00024383,2]
[362235630,1748115046845,-1200.56,0.00024383,2]
[362235632,1748115046854,-1462.07,0.00024383,2]
[362235634,1748115046864,-528.96,0.00024383,2]
[362235636,1748115046873,-1416.95,0.00024383,2]